[Event "*** SCC Grand Prix: Titled Tuesday Blitz"]
[Site "Chess.com"]
[Date "2020.09.29"]
[Round "8"]
[White "hawes33"]
[Black "PowerThinking2650"]
[Result "0-1"]
[WhiteElo "2214"]
[BlackElo "2375"]
[TimeControl "180+1"]
[EndTime "11:32:49 PDT"]
[Termination "PowerThinking2650 won by resignation"]

1. e4 {[%clk 0:03:00.9]} 1... e5 {[%clk 0:02:56.7]} 2. Nf3 {[%clk 0:03:00.5]}
2... Nc6 {[%clk 0:02:56.7]} 3. d4 {[%clk 0:02:59.7]} 3... exd4 {[%clk
0:02:56.4]} 4. Bc4 {[%clk 0:02:59.2]} 4... Nf6 {[%clk 0:02:56.5]} 5. e5 {[%clk
0:02:59.4]} 5... d5 {[%clk 0:02:56.3]} 6. Bb5 {[%clk 0:02:59.6]} 6... Ne4 {[%clk
0:02:57]} 7. Nxd4 {[%clk 0:02:58.9]} 7... Bc5 {[%clk 0:02:57]} 8. O-O {[%clk
0:02:54]} 8... Bd7 {[%clk 0:02:55.3]} 9. Bxc6 {[%clk 0:02:53.9]} 9... bxc6
{[%clk 0:02:55.5]} 10. f3 {[%clk 0:02:54.5]} 10... Ng5 {[%clk 0:02:54.1]} 11. f4
{[%clk 0:02:54.7]} 11... Ne4 {[%clk 0:02:36.1]} 12. Be3 {[%clk 0:02:51.1]} 12...
Rb8 {[%clk 0:02:17.6]} 13. b3 {[%clk 0:02:39.7]} 13... Bb6 {[%clk 0:02:07.2]}
14. f5 {[%clk 0:02:30.3]} 14... c5 {[%clk 0:01:56.8]} 15. Ne2 {[%clk 0:01:58.8]}
15... d4 {[%clk 0:01:38.8]} 16. Bf2 {[%clk 0:01:39.6]} 16... Bxf5 {[%clk
0:01:33.3]} 17. Ng3 {[%clk 0:01:33.9]} 17... Nxg3 {[%clk 0:01:05.4]} 18. Bxg3
{[%clk 0:01:17.2]} 18... Bg6 {[%clk 0:01:02.8]} 19. e6 {[%clk 0:01:16]} 19...
fxe6 {[%clk 0:00:20.2]} 20. Nd2 {[%clk 0:00:48.4]} 20... Qd5 {[%clk 0:00:16.8]}
21. Nc4 {[%clk 0:00:44.7]} 21... Rf8 {[%clk 0:00:15.8]} 22. a4 {[%clk
0:00:43.3]} 22... a5 {[%clk 0:00:15.1]} 23. Qe2 {[%clk 0:00:42.1]} 23... Rxf1+
{[%clk 0:00:13.8]} 24. Rxf1 {[%clk 0:00:41.5]} 24... Kd7 {[%clk 0:00:14.5]} 25.
Ne5+ {[%clk 0:00:40.7]} 25... Kc8 {[%clk 0:00:12.7]} 26. Qa6+ {[%clk 0:00:38.5]}
26... Kd8 {[%clk 0:00:11.9]} 27. Rf8+ {[%clk 0:00:33.2]} 27... Be8 {[%clk
0:00:11.7]} 28. Qb5 {[%clk 0:00:25.8]} 28... Ke7 {[%clk 0:00:10.8]} 29. Rxe8+
{[%clk 0:00:20.4]} 29... Rxe8 {[%clk 0:00:11.7]} 30. Nc6+ {[%clk 0:00:19.8]}
30... Kf8 {[%clk 0:00:11.4]} 31. Qf1+ {[%clk 0:00:19.9]} 31... Kg8 {[%clk
0:00:11]} 32. Ne5 {[%clk 0:00:20.1]} 32... Rf8 {[%clk 0:00:10.1]} 33. Qe2 {[%clk
0:00:20.3]} 33... c4 {[%clk 0:00:09.7]} 34. bxc4 {[%clk 0:00:18.9]} 34... d3+
{[%clk 0:00:10.1]} 35. Kh1 {[%clk 0:00:14.8]} 35... dxe2 {[%clk 0:00:10.6]} 0-1

[Event "*** SCC Grand Prix: Titled Tuesday Blitz"]
[Site "Chess.com"]
[Date "2020.09.29"]
[Round "8"]
[White "Chessbard1972"]
[Black "HouseOfDurin"]
[Result "0-1"]
[WhiteElo "2285"]
[BlackElo "2153"]
[TimeControl "180+1"]
[EndTime "11:32:52 PDT"]
[Termination "HouseOfDurin won by resignation"]

1. d4 {[%clk 0:03:00.9]} 1... Nf6 {[%clk 0:02:58.9]} 2. Nf3 {[%clk 0:03:00.8]}
2... c5 {[%clk 0:02:59.4]} 3. c4 {[%clk 0:02:59.2]} 3... cxd4 {[%clk 0:02:58.8]}
4. Nxd4 {[%clk 0:02:59.1]} 4... Nc6 {[%clk 0:02:59.7]} 5. Nc3 {[%clk 0:02:56.5]}
5... g6 {[%clk 0:02:59.7]} 6. g3 {[%clk 0:02:51]} 6... Bg7 {[%clk 0:02:59.7]} 7.
Bg2 {[%clk 0:02:50.3]} 7... O-O {[%clk 0:02:59.7]} 8. O-O {[%clk 0:02:48.5]}
8... Nxd4 {[%clk 0:02:58.4]} 9. Qxd4 {[%clk 0:02:47.6]} 9... d6 {[%clk
0:02:58.5]} 10. Qh4 {[%clk 0:02:47]} 10... Qa5 {[%clk 0:02:52]} 11. Bh6 {[%clk
0:02:45]} 11... Qh5 {[%clk 0:02:51.2]} 12. Qxh5 {[%clk 0:02:44.3]} 12... Nxh5
{[%clk 0:02:50.9]} 13. Bxg7 {[%clk 0:02:44.3]} 13... Nxg7 {[%clk 0:02:49.9]} 14.
Rfd1 {[%clk 0:02:37.9]} 14... Be6 {[%clk 0:02:48.6]} 15. b3 {[%clk 0:02:37.5]}
15... Rab8 {[%clk 0:02:41.5]} 16. Nb5 {[%clk 0:02:33.8]} 16... a6 {[%clk
0:02:40.8]} 17. Nd4 {[%clk 0:02:33.8]} 17... Bd7 {[%clk 0:02:37.5]} 18. Rac1
{[%clk 0:02:29.8]} 18... Rfc8 {[%clk 0:02:30.3]} 19. a4 {[%clk 0:02:20.3]} 19...
Ne6 {[%clk 0:02:30.2]} 20. Nxe6 {[%clk 0:02:18.3]} 20... Bxe6 {[%clk 0:02:31.1]}
21. Bd5 {[%clk 0:02:12.2]} 21... b5 {[%clk 0:02:11.1]} 22. Bxe6 {[%clk
0:02:07.6]} 22... fxe6 {[%clk 0:02:12]} 23. cxb5 {[%clk 0:02:06.6]} 23... axb5
{[%clk 0:01:42.7]} 24. a5 {[%clk 0:02:06]} 24... b4 {[%clk 0:01:31.5]} 25. Rxc8+
{[%clk 0:02:01]} 25... Rxc8 {[%clk 0:01:32.4]} 26. Ra1 {[%clk 0:01:58.4]} 26...
Ra8 {[%clk 0:01:32.1]} 27. a6 {[%clk 0:01:58]} 27... Ra7 {[%clk 0:01:32.1]} 28.
e3 {[%clk 0:01:54.9]} 28... e5 {[%clk 0:01:25.3]} 29. Kf1 {[%clk 0:01:51.6]}
29... Kf7 {[%clk 0:01:25.8]} 30. Ke2 {[%clk 0:01:51.3]} 30... Ke6 {[%clk
0:01:26.4]} 31. e4 {[%clk 0:01:51.6]} 31... Kd7 {[%clk 0:01:24]} 32. Kd3 {[%clk
0:01:51]} 32... Kc6 {[%clk 0:01:23.8]} 33. Kc4 {[%clk 0:01:50.8]} 33... Kb6
{[%clk 0:01:16.6]} 34. Kd5 {[%clk 0:01:45.5]} 34... Rxa6 {[%clk 0:00:33]} 35.
Rxa6+ {[%clk 0:01:44.3]} 35... Kxa6 {[%clk 0:00:33.9]} 36. Ke6 {[%clk
0:01:44.2]} 36... Kb6 {[%clk 0:00:31.3]} 37. Kxe7 {[%clk 0:01:44.2]} 37... Kc5
{[%clk 0:00:31.4]} 38. f4 {[%clk 0:01:42.7]} 38... Kd4 {[%clk 0:00:22.1]} 39. f5
{[%clk 0:01:42.1]} 39... gxf5 {[%clk 0:00:18.7]} 40. exf5 {[%clk 0:01:41.3]}
40... e4 {[%clk 0:00:19.2]} 41. f6 {[%clk 0:01:41.4]} 41... e3 {[%clk
0:00:19.9]} 42. f7 {[%clk 0:01:41.2]} 42... e2 {[%clk 0:00:20.8]} 43. f8=Q
{[%clk 0:01:39.4]} 43... e1=Q+ {[%clk 0:00:21.2]} 44. Kd7 {[%clk 0:01:39]} 44...
Qe5 {[%clk 0:00:17]} 45. Qf7 {[%clk 0:01:26.9]} 45... d5 {[%clk 0:00:14.5]} 46.
Kc6 {[%clk 0:01:24.2]} 46... Kc3 {[%clk 0:00:10.7]} 47. Qf3+ {[%clk 0:01:20.5]}
47... Kb2 {[%clk 0:00:10.3]} 48. Qd3 {[%clk 0:01:14.3]} 48... Qc3+ {[%clk
0:00:08.8]} 49. Qxc3+ {[%clk 0:01:06.3]} 49... bxc3 {[%clk 0:00:09.7]} 50. b4
{[%clk 0:01:05.7]} 50... c2 {[%clk 0:00:10.6]} 51. b5 {[%clk 0:01:05.9]} 51...
c1=Q+ {[%clk 0:00:11.5]} 52. Kxd5 {[%clk 0:01:06.3]} 52... Qd2+ {[%clk
0:00:11.3]} 53. Kc6 {[%clk 0:01:06.4]} 53... Qxh2 {[%clk 0:00:11.9]} 54. g4
{[%clk 0:01:04.3]} 54... Qg3 {[%clk 0:00:12.8]} 55. b6 {[%clk 0:01:03.6]} 55...
Qxg4 {[%clk 0:00:12.9]} 56. b7 {[%clk 0:01:03]} 56... Qb4 {[%clk 0:00:12.9]} 57.
Kc7 {[%clk 0:01:02.8]} 57... h5 {[%clk 0:00:13.4]} 58. b8=Q {[%clk 0:01:02.9]}
58... Qxb8+ {[%clk 0:00:13.6]} 59. Kxb8 {[%clk 0:01:02.4]} 59... h4 {[%clk
0:00:14.5]} 60. Kc7 {[%clk 0:01:02.6]} 60... h3 {[%clk 0:00:15.4]} 61. Kd6
{[%clk 0:01:03.4]} 61... h2 {[%clk 0:00:16.3]} 62. Ke5 {[%clk 0:01:04.3]} 62...
h1=Q {[%clk 0:00:17.2]} 0-1

[Event "*** SCC Grand Prix: Titled Tuesday Blitz"]
[Site "Chess.com"]
[Date "2020.09.29"]
[Round "8"]
[White "Zemerovv"]
[Black "night_player"]
[Result "0-1"]
[WhiteElo "2287"]
[BlackElo "2175"]
[TimeControl "180+1"]
[EndTime "11:32:54 PDT"]
[Termination "night_player won on time"]

1. g3 {[%clk 0:03:00.9]} 1... e6 {[%clk 0:02:56.4]} 2. Bg2 {[%clk 0:03:01.8]}
2... d5 {[%clk 0:02:56.3]} 3. b3 {[%clk 0:03:00.4]} 3... b6 {[%clk 0:02:56.5]}
4. Bb2 {[%clk 0:03:00]} 4... Bb7 {[%clk 0:02:56.7]} 5. e3 {[%clk 0:02:59.5]}
5... Nf6 {[%clk 0:02:56.9]} 6. Ne2 {[%clk 0:02:59.1]} 6... Be7 {[%clk
0:02:57.3]} 7. d3 {[%clk 0:02:58.6]} 7... O-O {[%clk 0:02:57.6]} 8. h3 {[%clk
0:02:58.5]} 8... c5 {[%clk 0:02:57]} 9. Nd2 {[%clk 0:02:57.2]} 9... Nbd7 {[%clk
0:02:57.2]} 10. g4 {[%clk 0:02:56.8]} 10... Qc7 {[%clk 0:02:54.9]} 11. Ng3
{[%clk 0:02:51.9]} 11... Ne8 {[%clk 0:02:39.6]} 12. g5 {[%clk 0:02:49]} 12...
Bxg5 {[%clk 0:02:37]} 13. Nh5 {[%clk 0:02:37.7]} 13... Bh6 {[%clk 0:02:24.3]}
14. Qg4 {[%clk 0:02:24.2]} 14... f5 {[%clk 0:02:15.9]} 15. Qh4 {[%clk
0:02:18.8]} 15... e5 {[%clk 0:02:01.7]} 16. Rg1 {[%clk 0:02:03.6]} 16... Kh8
{[%clk 0:01:58.1]} 17. O-O-O {[%clk 0:01:59.1]} 17... d4 {[%clk 0:01:56.4]} 18.
Bxb7 {[%clk 0:01:54.9]} 18... Qxb7 {[%clk 0:01:55.6]} 19. Nc4 {[%clk 0:01:45.6]}
19... b5 {[%clk 0:01:50.7]} 20. Nxe5 {[%clk 0:01:29.3]} 20... Nxe5 {[%clk
0:01:48]} 21. Kb1 {[%clk 0:01:16.9]} 21... Nf3 {[%clk 0:01:46.4]} 22. Qg3 {[%clk
0:01:02.6]} 22... Nxg1 {[%clk 0:01:46.2]} 23. Rxg1 {[%clk 0:01:02.3]} 23... Qf7
{[%clk 0:01:42.4]} 24. Qf3 {[%clk 0:00:47.9]} 24... Rd8 {[%clk 0:01:41.4]} 25.
exd4 {[%clk 0:00:46.4]} 25... cxd4 {[%clk 0:01:41.3]} 26. h4 {[%clk 0:00:36.3]}
26... Nf6 {[%clk 0:01:23.2]} 27. Ng3 {[%clk 0:00:30.4]} 27... f4 {[%clk
0:01:18.8]} 28. Nf5 {[%clk 0:00:28.4]} 28... Qh5 {[%clk 0:01:11.5]} 29. Qxh5
{[%clk 0:00:19.9]} 29... Nxh5 {[%clk 0:01:12.4]} 30. Nxh6 {[%clk 0:00:20.2]}
30... gxh6 {[%clk 0:01:12.3]} 31. c3 {[%clk 0:00:17.8]} 31... Rd5 {[%clk
0:01:07.4]} 32. cxd4 {[%clk 0:00:16.9]} 32... Ng7 {[%clk 0:01:04.9]} 33. Re1
{[%clk 0:00:14.9]} 33... Kg8 {[%clk 0:01:02.5]} 34. Re7 {[%clk 0:00:13.1]} 34...
Rf7 {[%clk 0:01:01.2]} 35. Re4 {[%clk 0:00:12.1]} 35... b4 {[%clk 0:00:55]} 36.
a3 {[%clk 0:00:11.1]} 36... a5 {[%clk 0:00:55]} 37. axb4 {[%clk 0:00:10.2]}
37... axb4 {[%clk 0:00:55.9]} 38. Re2 {[%clk 0:00:10]} 38... Kf8 {[%clk
0:00:55.6]} 39. Rc2 {[%clk 0:00:09.8]} 39... Rfd7 {[%clk 0:00:54.7]} 40. Rc4
{[%clk 0:00:08.5]} 40... Rb7 {[%clk 0:00:53.4]} 41. Rc8+ {[%clk 0:00:07.6]}
41... Kf7 {[%clk 0:00:52.9]} 42. Rh8 {[%clk 0:00:06.7]} 42... Kg6 {[%clk
0:00:53.2]} 43. Rg8 {[%clk 0:00:05.6]} 43... Kh5 {[%clk 0:00:52.5]} 44. f3
{[%clk 0:00:04.4]} 44... Kxh4 {[%clk 0:00:52.1]} 45. Rh8 {[%clk 0:00:03.5]}
45... Nf5 {[%clk 0:00:51.5]} 46. Rg8 {[%clk 0:00:01.4]} 46... Kh3 {[%clk
0:00:48.7]} 0-1

[Event "*** SCC Grand Prix: Titled Tuesday Blitz"]
[Site "Chess.com"]
[Date "2020.09.29"]
[Round "8"]
[White "Fandorine"]
[Black "Onischuk_V"]
[Result "1/2-1/2"]
[WhiteElo "2934"]
[BlackElo "2902"]
[TimeControl "180+1"]
[EndTime "11:32:57 PDT"]
[Termination "Game drawn by agreement"]

1. e4 {[%clk 0:03:00.9]} 1... d6 {[%clk 0:02:58.8]} 2. d4 {[%clk 0:03:00.9]}
2... Nf6 {[%clk 0:02:59.5]} 3. f3 {[%clk 0:03:00.5]} 3... e5 {[%clk 0:02:57.8]}
4. dxe5 {[%clk 0:03:00.5]} 4... dxe5 {[%clk 0:02:57.6]} 5. Qxd8+ {[%clk
0:03:01.4]} 5... Kxd8 {[%clk 0:02:57.5]} 6. Bc4 {[%clk 0:03:02.3]} 6... Ke8
{[%clk 0:02:57.8]} 7. Be3 {[%clk 0:03:01.4]} 7... Nbd7 {[%clk 0:02:56.5]} 8. Ne2
{[%clk 0:02:58.7]} 8... Bc5 {[%clk 0:02:56]} 9. Kf2 {[%clk 0:02:58.7]} 9... Ke7
{[%clk 0:02:54.2]} 10. Nd2 {[%clk 0:02:53.6]} 10... Bxe3+ {[%clk 0:02:50.5]} 11.
Kxe3 {[%clk 0:02:53.8]} 11... Nb6 {[%clk 0:02:51.1]} 12. Bb3 {[%clk 0:02:50.8]}
12... Nfd7 {[%clk 0:02:51.2]} 13. Nc1 {[%clk 0:02:46.6]} 13... Nc5 {[%clk
0:02:48.7]} 14. Nd3 {[%clk 0:02:47]} 14... Nxd3 {[%clk 0:02:48.8]} 15. cxd3
{[%clk 0:02:47.9]} 15... f6 {[%clk 0:02:37.7]} 16. Rac1 {[%clk 0:02:35.8]} 16...
c6 {[%clk 0:02:37.6]} 17. d4 {[%clk 0:02:33.9]} 17... exd4+ {[%clk 0:02:37]} 18.
Kxd4 {[%clk 0:02:34.8]} 18... Rd8+ {[%clk 0:02:36.4]} 19. Ke3 {[%clk 0:02:35]}
19... Bd7 {[%clk 0:02:33.3]} 20. Rhd1 {[%clk 0:02:34.7]} 20... Be8 {[%clk
0:02:32.9]} 21. Nc4 {[%clk 0:02:26.3]} 21... Nxc4+ {[%clk 0:02:29.6]} 22. Bxc4
{[%clk 0:02:26.5]} 22... a5 {[%clk 0:02:25.8]} 23. h4 {[%clk 0:02:23]} 23... h6
{[%clk 0:02:18]} 24. a3 {[%clk 0:02:19.1]} 24... a4 {[%clk 0:02:10.4]} 25. g3
{[%clk 0:02:11.1]} 25... Rxd1 {[%clk 0:02:10.1]} 26. Rxd1 {[%clk 0:02:11.1]}
26... Ra5 {[%clk 0:02:10.5]} 27. f4 {[%clk 0:01:57.3]} 27... Rc5 {[%clk
0:02:07.2]} 28. Bd3 {[%clk 0:01:55.8]} 28... Ra5 {[%clk 0:02:04.6]} 29. g4
{[%clk 0:01:43.4]} 29... Bf7 {[%clk 0:02:02.7]} 30. h5 {[%clk 0:01:40.6]} 30...
c5 {[%clk 0:01:55]} 31. Rc1 {[%clk 0:01:29.6]} 31... Kd6 {[%clk 0:01:53.8]} 32.
Rd1 {[%clk 0:01:18.9]} 32... Ke7 {[%clk 0:01:49.8]} 33. Rc1 {[%clk 0:01:09.8]}
33... b6 {[%clk 0:01:49.3]} 34. Be2 {[%clk 0:01:06.2]} 34... Bb3 {[%clk
0:01:48.1]} 35. Rg1 {[%clk 0:01:00.6]} 35... c4 {[%clk 0:01:26.7]} 36. Kd4
{[%clk 0:00:56.7]} 36... Rc5 {[%clk 0:01:25.6]} 37. Rg3 {[%clk 0:00:49.7]} 37...
Rc8 {[%clk 0:01:23.2]} 38. Re3 {[%clk 0:00:39.5]} 38... Rd8+ {[%clk 0:01:07.9]}
39. Kc3 {[%clk 0:00:39.7]} 39... b5 {[%clk 0:00:58.6]} 40. e5 {[%clk 0:00:39.7]}
40... Bd1 {[%clk 0:00:56.8]} 41. Kb4 {[%clk 0:00:20.4]} 41... Bxe2 {[%clk
0:00:53.4]} 42. Rxe2 {[%clk 0:00:21.3]} 42... Rd5 {[%clk 0:00:41.1]} 43. exf6+
{[%clk 0:00:07.8]} 43... Kxf6 {[%clk 0:00:40.9]} 44. Rf2 {[%clk 0:00:04.9]}
1/2-1/2

[Event "*** SCC Grand Prix: Titled Tuesday Blitz"]
[Site "Chess.com"]
[Date "2020.09.29"]
[Round "8"]
[White "CrazyMartian"]
[Black "AlexSuv"]
[Result "0-1"]
[WhiteElo "2333"]
[BlackElo "2508"]
[TimeControl "180+1"]
[EndTime "11:32:57 PDT"]
[Termination "AlexSuv won by resignation"]

1. d4 {[%clk 0:02:44.3]} 1... Nf6 {[%clk 0:02:57.8]} 2. Bf4 {[%clk 0:02:40.1]}
2... e6 {[%clk 0:02:56]} 3. e3 {[%clk 0:02:40.4]} 3... b6 {[%clk 0:02:55.7]} 4.
Qf3 {[%clk 0:02:39.6]} 4... d5 {[%clk 0:02:48.9]} 5. Nd2 {[%clk 0:02:37.6]} 5...
Bb7 {[%clk 0:02:48.8]} 6. Bd3 {[%clk 0:02:36.2]} 6... Nbd7 {[%clk 0:02:47.7]} 7.
c3 {[%clk 0:02:30.8]} 7... Be7 {[%clk 0:02:43.8]} 8. a4 {[%clk 0:02:20.7]} 8...
a5 {[%clk 0:02:32.7]} 9. Qh3 {[%clk 0:02:19.9]} 9... h6 {[%clk 0:02:29.2]} 10.
Qf3 {[%clk 0:02:14.3]} 10... Ba6 {[%clk 0:02:15.8]} 11. Bxa6 {[%clk 0:02:11]}
11... Rxa6 {[%clk 0:02:16.7]} 12. h4 {[%clk 0:02:08.4]} 12... Nf8 {[%clk
0:01:43.5]} 13. h5 {[%clk 0:01:55.7]} 13... Bd6 {[%clk 0:01:39.9]} 14. Ne2
{[%clk 0:01:52.1]} 14... N8h7 {[%clk 0:01:32.8]} 15. g4 {[%clk 0:01:41.3]} 15...
Ra8 {[%clk 0:01:25.9]} 16. Qg3 {[%clk 0:01:31.3]} 16... Ng5 {[%clk 0:01:14.4]}
17. Bxd6 {[%clk 0:01:17.6]} 17... cxd6 {[%clk 0:01:13.4]} 18. f3 {[%clk
0:01:16.2]} 18... Qd7 {[%clk 0:01:10]} 19. O-O {[%clk 0:01:13.4]} 19... O-O
{[%clk 0:01:05.7]} 20. Kg2 {[%clk 0:01:04.8]} 20... b5 {[%clk 0:01:05.3]} 21.
Nf4 {[%clk 0:00:56]} 21... bxa4 {[%clk 0:01:03.2]} 22. Nd3 {[%clk 0:00:54.3]}
22... Qb5 {[%clk 0:00:58.4]} 23. Nf2 {[%clk 0:00:17]} 23... Qxb2 {[%clk
0:00:57.7]} 24. Rad1 {[%clk 0:00:09.9]} 24... Qxc3 {[%clk 0:00:56.3]} 25. Rfe1
{[%clk 0:00:09.7]} 25... Qc6 {[%clk 0:00:48.4]} 26. Nh3 {[%clk 0:00:09.4]} 26...
Nxh3 {[%clk 0:00:48]} 27. Kxh3 {[%clk 0:00:10.3]} 27... Nh7 {[%clk 0:00:35.2]}
28. f4 {[%clk 0:00:10.1]} 28... f6 {[%clk 0:00:33.6]} 29. Nf3 {[%clk 0:00:09.9]}
29... Qe8 {[%clk 0:00:29.2]} 30. Kg2 {[%clk 0:00:09.1]} 30... Rb8 {[%clk
0:00:26.9]} 31. Rd2 {[%clk 0:00:08.2]} 31... a3 {[%clk 0:00:26.9]} 32. g5 {[%clk
0:00:07]} 32... Qxh5 {[%clk 0:00:24.1]} 33. Rh1 {[%clk 0:00:06.6]} 33... Qg6
{[%clk 0:00:24]} 34. Nh4 {[%clk 0:00:05.7]} 34... Qe4+ {[%clk 0:00:23.9]} 35.
Kf2 {[%clk 0:00:04.2]} 35... fxg5 {[%clk 0:00:23.8]} 36. Rg1 {[%clk 0:00:02.3]}
36... Rf7 {[%clk 0:00:21.6]} 37. Nf3 {[%clk 0:00:02.5]} 37... gxf4 {[%clk
0:00:21.5]} 38. Qg4 {[%clk 0:00:01.2]} 38... fxe3+ {[%clk 0:00:21.3]} 0-1

[Event "*** SCC Grand Prix: Titled Tuesday Blitz"]
[Site "Chess.com"]
[Date "2020.09.29"]
[Round "8"]
[White "NikolaGry"]
[Black "Radzio1987"]
[Result "0-1"]
[WhiteElo "2644"]
[BlackElo "2834"]
[TimeControl "180+1"]
[EndTime "11:32:58 PDT"]
[Termination "Radzio1987 won on time"]

1. e4 {[%clk 0:03:00.9]} 1... c5 {[%clk 0:02:57.1]} 2. Be2 {[%clk 0:02:59.4]}
2... Nc6 {[%clk 0:02:55.9]} 3. f4 {[%clk 0:02:58.9]} 3... g6 {[%clk 0:02:56.2]}
4. Nf3 {[%clk 0:02:55.6]} 4... Bg7 {[%clk 0:02:56.8]} 5. d3 {[%clk 0:02:54.5]}
5... d6 {[%clk 0:02:57]} 6. c3 {[%clk 0:02:54.1]} 6... e6 {[%clk 0:02:57.2]} 7.
O-O {[%clk 0:02:53.5]} 7... Nge7 {[%clk 0:02:57.7]} 8. Be3 {[%clk 0:02:42.8]}
8... O-O {[%clk 0:02:57.3]} 9. Nbd2 {[%clk 0:02:42.2]} 9... b6 {[%clk
0:02:54.5]} 10. d4 {[%clk 0:02:37.5]} 10... Bb7 {[%clk 0:02:49.1]} 11. a3 {[%clk
0:02:31.3]} 11... Rc8 {[%clk 0:02:45.8]} 12. Qe1 {[%clk 0:02:25.2]} 12... Qd7
{[%clk 0:02:36.2]} 13. Rd1 {[%clk 0:02:11.6]} 13... cxd4 {[%clk 0:02:31.5]} 14.
cxd4 {[%clk 0:02:11.3]} 14... f5 {[%clk 0:02:25.9]} 15. e5 {[%clk 0:01:59.4]}
15... Nd5 {[%clk 0:02:24.5]} 16. Bc4 {[%clk 0:01:51.6]} 16... Na5 {[%clk
0:02:10.9]} 17. Ba2 {[%clk 0:01:47.8]} 17... Rc2 {[%clk 0:02:10.1]} 18. Rb1
{[%clk 0:01:25.4]} 18... Rfc8 {[%clk 0:02:09.3]} 19. Rf2 {[%clk 0:01:02.1]}
19... dxe5 {[%clk 0:01:39.8]} 20. fxe5 {[%clk 0:00:52.7]} 20... Nxe3 {[%clk
0:01:36.1]} 21. Qxe3 {[%clk 0:00:51.5]} 21... Bd5 {[%clk 0:01:36.6]} 22. Bxd5
{[%clk 0:00:49.1]} 22... Qxd5 {[%clk 0:01:37.5]} 23. h4 {[%clk 0:00:48.4]} 23...
h6 {[%clk 0:01:35.7]} 24. h5 {[%clk 0:00:32.8]} 24... g5 {[%clk 0:01:16.1]} 25.
Nxg5 {[%clk 0:00:32.4]} 25... hxg5 {[%clk 0:01:17]} 26. Qxg5 {[%clk 0:00:32.4]}
26... Qd8 {[%clk 0:01:17.5]} 27. Qg6 {[%clk 0:00:28.1]} 27... Qe8 {[%clk
0:01:17]} 28. Nf3 {[%clk 0:00:17.3]} 28... Qxg6 {[%clk 0:01:11.2]} 29. hxg6
{[%clk 0:00:17.5]} 29... Nb3 {[%clk 0:01:11.2]} 30. Rd1 {[%clk 0:00:14.5]} 30...
Bh6 {[%clk 0:01:09.8]} 31. Rxc2 {[%clk 0:00:13.8]} 31... Rxc2 {[%clk 0:01:10.7]}
32. d5 {[%clk 0:00:14.1]} 32... Be3+ {[%clk 0:01:03.3]} 33. Kh2 {[%clk
0:00:12.5]} 33... exd5 {[%clk 0:00:59.8]} 34. Rxd5 {[%clk 0:00:12.1]} 34... Kg7
{[%clk 0:00:59]} 35. Rd6 {[%clk 0:00:09.3]} 35... Bf4+ {[%clk 0:00:54]} 36. Kh3
{[%clk 0:00:08.9]} 36... Re2 {[%clk 0:00:42.7]} 37. Re6 {[%clk 0:00:04.8]} 37...
Nc5 {[%clk 0:00:41.8]} 38. Re7+ {[%clk 0:00:03.9]} 38... Kxg6 {[%clk 0:00:35.8]}
39. Nh4+ {[%clk 0:00:04]} 39... Kh6 {[%clk 0:00:24.7]} 40. Nxf5+ {[%clk
0:00:02.1]} 40... Kg5 {[%clk 0:00:25]} 0-1

[Event "*** SCC Grand Prix: Titled Tuesday Blitz"]
[Site "Chess.com"]
[Date "2020.09.29"]
[Round "8"]
[White "Oligan22"]
[Black "Witik"]
[Result "0-1"]
[WhiteElo "2428"]
[BlackElo "2677"]
[TimeControl "180+1"]
[EndTime "11:32:58 PDT"]
[Termination "Witik won by resignation"]

1. e4 {[%clk 0:03:00.9]} 1... c6 {[%clk 0:02:59]} 2. d4 {[%clk 0:03:00]} 2... d5
{[%clk 0:02:59]} 3. e5 {[%clk 0:03:00.6]} 3... Bf5 {[%clk 0:02:58.8]} 4. h4
{[%clk 0:03:01]} 4... Qb6 {[%clk 0:02:58.4]} 5. g4 {[%clk 0:02:48.6]} 5... Bd7
{[%clk 0:02:57.7]} 6. c3 {[%clk 0:02:34.6]} 6... h5 {[%clk 0:02:57.1]} 7. f3
{[%clk 0:02:23.9]} 7... hxg4 {[%clk 0:02:55.2]} 8. fxg4 {[%clk 0:02:24.8]} 8...
Nh6 {[%clk 0:02:51.7]} 9. Be2 {[%clk 0:02:21.2]} 9... e6 {[%clk 0:02:50]} 10.
Nh3 {[%clk 0:02:19.3]} 10... c5 {[%clk 0:02:49.8]} 11. Na3 {[%clk 0:02:00.2]}
11... cxd4 {[%clk 0:02:41.4]} 12. cxd4 {[%clk 0:02:01.1]} 12... Bb4+ {[%clk
0:02:29.6]} 13. Kf2 {[%clk 0:01:59.1]} 13... Nc6 {[%clk 0:02:26.6]} 14. Be3
{[%clk 0:01:53]} 14... O-O-O {[%clk 0:02:17.6]} 15. Nc2 {[%clk 0:01:51.1]} 15...
Be7 {[%clk 0:02:17.5]} 16. Nf4 {[%clk 0:01:32.2]} 16... Kb8 {[%clk 0:02:03.6]}
17. a3 {[%clk 0:01:21.5]} 17... Bc8 {[%clk 0:01:56.2]} 18. b4 {[%clk 0:01:21.3]}
18... f6 {[%clk 0:01:56.7]} 19. b5 {[%clk 0:01:15]} 19... fxe5 {[%clk
0:01:53.6]} 20. bxc6 {[%clk 0:00:40.9]} 20... exf4 {[%clk 0:01:53.5]} 21. Bxf4+
{[%clk 0:00:41.8]} 21... Ka8 {[%clk 0:01:53]} 22. cxb7+ {[%clk 0:00:39.5]} 22...
Bxb7 {[%clk 0:01:53.9]} 23. Rb1 {[%clk 0:00:34.5]} 23... Qc6 {[%clk 0:01:50.7]}
24. Nb4 {[%clk 0:00:29.5]} 24... Bxb4 {[%clk 0:01:49.5]} 25. Rxb4 {[%clk
0:00:30.4]} 25... Rdf8 {[%clk 0:01:48.3]} 26. Kg3 {[%clk 0:00:30.6]} 26... Rxf4
{[%clk 0:01:41.2]} 27. Kxf4 {[%clk 0:00:30.4]} 27... Qd6+ {[%clk 0:01:19.1]} 28.
Ke3 {[%clk 0:00:30.2]} 28... Qg3+ {[%clk 0:01:17.5]} 29. Kd2 {[%clk 0:00:27.5]}
29... Rc8 {[%clk 0:01:15.6]} 30. Qb3 {[%clk 0:00:27]} 30... Qf4+ {[%clk
0:01:09.6]} 31. Kd3 {[%clk 0:00:24.4]} 31... Ba6+ {[%clk 0:01:01.2]} 32. Rb5
{[%clk 0:00:22.9]} 32... Qe4+ {[%clk 0:00:58.8]} 33. Kd2 {[%clk 0:00:20.6]}
33... Bxb5 {[%clk 0:00:44]} 34. Bxb5 {[%clk 0:00:15.9]} 34... Qxh1 {[%clk
0:00:43.1]} 35. Ba6 {[%clk 0:00:15.6]} 35... Qg2+ {[%clk 0:00:40.3]} 36. Kd1
{[%clk 0:00:14.3]} 36... Qg1+ {[%clk 0:00:40.3]} 37. Kd2 {[%clk 0:00:14.7]}
37... Qf2+ {[%clk 0:00:39.3]} 38. Kd1 {[%clk 0:00:14.8]} 38... Qxd4+ {[%clk
0:00:39.3]} 39. Ke1 {[%clk 0:00:14.3]} 39... Rc1+ {[%clk 0:00:34.7]} 40. Ke2
{[%clk 0:00:12.5]} 40... Qxg4+ {[%clk 0:00:32.3]} 41. Kd2 {[%clk 0:00:12.5]}
41... Qf4+ {[%clk 0:00:32.5]} 42. Ke2 {[%clk 0:00:10]} 42... Qf1+ {[%clk
0:00:31]} 43. Kd2 {[%clk 0:00:09.6]} 43... Qe1+ {[%clk 0:00:30.2]} 44. Kd3
{[%clk 0:00:10.1]} 44... Rd1+ {[%clk 0:00:28.3]} 45. Kc2 {[%clk 0:00:09.1]} 0-1